{"text_format":"1","workbook":"xlsx","n_sheets":3,"sheets":["総括","請求書1P","内訳"],"not_rendered":{"charts":0,"images":0,"macros":1,"external_links":0,"defined_names":2,"comments":1,"pivot_tables":0},"unopened":[],"bounds":{"document_bytes":16777216,"sheet_cells":100000,"rows_first":2000,"rows_last":500,"rows_between":2000,"halvings":0,"cell_chars":16384,"cell_head_chars":4096},"cells_cut":0,"cells_raw":0,"read":"whole","date_system":"1900"}

{"sheet":"総括","index":0,"n_rows":34,"n_cols":45,"rows_kept":34,"cut":false,"hidden":false,"merged":[[26,0,26,2],[26,3,26,31],[26,32,26,36],[26,37,26,45],[27,0,27,2],[27,3,27,31],[27,32,27,36],[27,37,27,45],[24,0,24,2],[24,3,24,31],[24,32,24,36],[32,0,32,7],[32,8,32,26],[32,27,32,33],[32,34,32,45],[28,0,28,2],[28,3,28,36],[28,37,28,45],[31,0,31,7],[31,8,31,18],[31,21,31,29],[31,33,31,37],[31,38,31,45],[24,37,24,45],[25,0,25,2],[25,3,25,31],[25,32,25,36],[25,37,25,45],[22,0,22,2],[22,3,22,31],[22,32,22,36],[22,37,22,45],[23,0,23,2],[23,3,23,31],[23,32,23,36],[23,37,23,45],[20,0,20,2],[20,3,20,31],[20,32,20,36],[20,37,20,45],[21,0,21,2],[21,3,21,31],[21,32,21,36],[21,37,21,45],[18,0,18,2],[18,3,18,31],[18,32,18,36],[18,37,18,45],[19,0,19,2],[19,3,19,31],[19,32,19,36],[19,37,19,45],[16,0,16,2],[16,3,16,31],[16,32,16,36],[16,37,16,45],[17,0,17,2],[17,3,17,31],[17,32,17,36],[17,37,17,45],[14,0,14,2],[14,3,14,31],[14,32,14,36],[14,37,14,45],[15,0,15,2],[15,3,15,31],[15,32,15,36],[15,37,15,45],[12,0,12,2],[12,3,12,31],[12,32,12,36],[12,37,12,45],[13,0,13,2],[13,3,13,31],[13,32,13,36],[13,37,13,45],[9,37,9,45],[10,0,10,2],[10,3,10,31],[10,32,10,36],[10,37,10,45],[11,0,11,2],[11,3,11,31],[11,32,11,36],[11,37,11,45],[1,0,1,24],[2,6,2,18],[2,26,2,31],[2,33,2,45],[6,0,7,11],[6,12,7,13],[6,14,7,23],[9,0,9,2],[9,3,9,31],[9,32,9,36],[3,0,3,24],[3,26,5,31],[3,33,3,45],[4,0,4,24],[4,33,4,45],[5,33,5,43],[5,44,5,45],[1,33,1,45]]}
[]
["請求総括表",null,null,null,null,null,null,null,null,null,null,null,null,null,null,null,null,null,null,null,null,null,null,null,null,null,"請求年月日",null,null,null,null,null,null,{"$f":"+請求書1P!AD8","v":"00:00:00"}]
[null,null,null,null,null,null,"（工事請求専用）",null,null,null,null,null,null,null,null,null,null,null,null,null,null,null,null,null,null,null,"請負者コード",null,null,null,null,null,null,{"$f":"+請求書1P!AD9","v":0}]
[null,null,null,null,null,null,null,null,null,null,null,null,null,null,null,null,null,null,null,null,null,null,null,null,null,null,"請負者住所\n\n請負者名",null,null,null,null,null,null,{"$f":"+請求書1P!AD10","v":0}]
["湯本内装株式会社　御中",null,null,null,null,null,null,null,null,null,null,null,null,null,null,null,null,null,null,null,null,null,null,null,null,null,null,null,null,null,null,null,null,{"$f":"+請求書1P!AD11","v":0}]
[null,"下記の通り請求致します。",null,null,null,null,null,null,null,null,null,null,null,null,null,null,null,null,null,null,null,null,null,null,null,null,null,null,null,null,null,null,null,{"$f":"+請求書1P!AD13","v":0},null,null,null,null,null,null,null,null,null,null,"㊞"]
["請求金額（消費税別）",null,null,null,null,null,null,null,null,null,null,null,"￥",null,{"$f":"+AL29","v":0}]
[]
[]
["№",null,null,"現　　場　　名",null,null,null,null,null,null,null,null,null,null,null,null,null,null,null,null,null,null,null,null,null,null,null,null,null,null,null,null,"請求書枚数",null,null,null,null,"請求金額"]
[1]
[2]
[3]
[4]
[5]
[6]
[7]
[8]
[9]
[10]
[11]
[12]
[13]
[14]
[15]
[16]
[17]
[18]
[null,null,null,"合　　　計",null,null,null,null,null,null,null,null,null,null,null,null,null,null,null,null,null,null,null,null,null,null,null,null,null,null,null,null,null,null,null,null,null,{"$f":"SUM(AL11:AT28)","v":0}]
[]
["※新規及び変更がある場合はご記入下さい。"]
["振込先銀行名",null,null,null,null,null,null,null,null,null,null,null,null,null,null,null,null,null,null,"銀行",null,null,null,null,null,null,null,null,null,null,"支店",null,null,"口座種別",null,null,null,null,"普通　・　当座"]
["口座名",null,null,null,null,null,null,null,null,null,null,null,null,null,null,null,null,null,null,null,null,null,null,null,null,null,null,"口座番号"]
["．"]

{"sheet":"請求書1P","index":1,"n_rows":40,"n_cols":43,"rows_kept":40,"cut":false,"hidden":false,"merged":[[0,42,0,43],[0,40,0,41],[0,37,0,38],[38,22,38,27],[39,28,39,35],[39,36,39,43],[11,10,11,20],[11,29,11,43],[3,0,3,18],[4,0,5,21],[6,0,6,9],[6,10,6,19],[7,0,7,20],[1,0,2,18],[1,19,3,19],[10,10,10,20],[10,29,10,43],[11,1,11,8],[1,32,1,34],[1,35,1,37],[1,38,1,40],[31,0,31,2],[31,3,31,36],[31,37,31,43],[34,0,34,43],[35,21,39,21],[37,22,37,32],[37,33,37,43],[35,22,36,32],[35,33,36,43],[35,1,35,9],[36,1,36,9],[37,1,37,9],[38,1,38,9],[35,15,35,19],[38,15,38,19],[37,15,37,19],[30,0,30,2],[30,3,30,24],[30,25,30,29],[30,30,30,31],[30,32,30,36],[30,37,30,43],[29,0,29,2],[29,3,29,24],[29,25,29,29],[29,30,29,31],[29,32,29,36],[29,37,29,43],[28,0,28,2],[28,3,28,24],[28,25,28,29],[28,30,28,31],[28,32,28,36],[28,37,28,43],[27,0,27,2],[27,3,27,24],[27,25,27,29],[27,30,27,31],[27,32,27,36],[27,37,27,43],[26,0,26,2],[26,3,26,24],[26,25,26,29],[26,30,26,31],[26,32,26,36],[26,37,26,43],[25,0,25,2],[25,3,25,24],[25,25,25,29],[25,30,25,31],[25,32,25,36],[25,37,25,43],[24,0,24,2],[24,3,24,24],[24,25,24,29],[24,30,24,31],[24,32,24,36],[24,37,24,43],[23,0,23,2],[23,3,23,24],[23,25,23,29],[23,30,23,31],[23,32,23,36],[23,37,23,43],[22,0,22,2],[22,3,22,24],[22,25,22,29],[22,30,22,31],[22,32,22,36],[22,37,22,43],[21,0,21,2],[21,3,21,24],[21,25,21,29],[21,30,21,31],[21,32,21,36],[21,37,21,43],[20,0,20,2],[20,3,20,24],[20,25,20,29],[20,30,20,31],[20,32,20,36],[20,37,20,43],[19,0,19,2],[19,3,19,24],[19,25,19,29],[19,30,19,31],[19,32,19,36],[19,37,19,43],[17,0,17,7],[17,8,17,43],[18,0,18,2],[18,3,18,24],[18,25,18,29],[18,30,18,31],[18,32,18,36],[18,37,18,43],[14,33,14,43],[15,24,15,43],[16,0,16,7],[16,8,16,26],[16,27,16,34],[16,35,16,43],[12,1,12,8],[12,10,12,20],[12,29,12,40],[12,41,12,43],[13,0,13,43],[14,0,15,8],[14,9,15,10],[14,11,15,22],[14,23,15,23],[14,24,14,32],[6,21,12,21],[4,22,6,43],[8,1,8,8],[8,10,8,15],[8,16,8,20],[7,22,7,28],[7,29,7,43],[8,22,8,28],[8,29,8,43],[9,1,9,8],[9,10,9,20],[9,22,12,28],[9,29,9,43],[10,1,10,8],[1,41,1,43],[2,20,3,22],[2,23,3,25],[2,26,3,28],[2,29,3,31],[2,32,3,34],[2,35,3,37],[1,20,1,22],[1,23,1,25],[1,26,1,28],[1,29,1,31],[2,38,3,40],[2,41,3,43]]}
[null,null,null,null,null,null,null,null,null,null,null,null,null,null,null,null,null,null,null,null,null,null,null,null,null,null,null,null,null,null,null,null,null,null,null,null,null,null,null,null,null,null,"㌻"]
["請　　求　　書",null,null,null,null,null,null,null,null,null,null,null,null,null,null,null,null,null,null,null,"社長",null,null,"副社長",null,null,"専務",null,null,"営業",null,null,"工事",null,null,"総務",null,null,"確認",null,null,"確認"]
[]
["（手間工事専用）"]
["担当者と事前に単価を取り決め済か、取り決め無しか\nどちらか一方に ☑ を付けて下さい。",null,null,null,null,null,null,null,null,null,null,null,null,null,null,null,null,null,null,null,null,null,"湯本内装株式会社　御中\n\n下記の通り請求致します。"]
[]
["事前取決め済",null,null,null,null,null,null,null,null,null,"事前取決め無し"]
[null,null,null,null,null,null,null,null,null,null,null,null,null,null,null,null,null,null,null,null,null,null,"請求年月日"]
[null,"請求回数",null,null,null,null,null,null,null,null,null,null,null,null,null,null,"回目",null,null,null,null,null,"請負者コード"]
["①","取極金額(税抜)",null,null,null,null,null,null,null,null,null,null,null,null,null,null,null,null,null,null,null,null,"請負者住所\n\n請負者名"]
["②","今回請求金額",null,null,null,null,null,null,null,null,{"$f":"+AL32","v":0}]
["③","既受領済金額"]
[null,"残額（①－②－③）",null,null,null,null,null,null,null,null,{"$f":"+K10-K11-K12","v":0},null,null,null,null,null,null,null,null,null,null,null,null,null,null,null,null,null,null,null,null,null,null,null,null,null,null,null,null,null,null,"㊞"]
[]
["請　求　金　額\n（消費税別）",null,null,null,null,null,null,null,null,"￥",null,{"$f":"+AL32","v":0},null,null,null,null,null,null,null,null,null,null,null,null,"工事コード"]
[]
["得意先名",null,null,null,null,null,null,null,null,null,null,null,null,null,null,null,null,null,null,null,null,null,null,null,null,null,null,"担当者名"]
["現場名"]
["月日",null,null,"内　　　　容",null,null,null,null,null,null,null,null,null,null,null,null,null,null,null,null,null,null,null,null,null,"数　量",null,null,null,null,"単位",null,"単　価",null,null,null,null,"金　　額"]
[null,null,null,null,null,null,null,null,null,null,null,null,null,null,null,null,null,null,null,null,null,null,null,null,null,null,null,null,null,null,null,null,null,null,null,null,null,{"$f":"IF(Z20=\"\",\"\",Z20*AG20)","v":""}]
[null,null,null,null,null,null,null,null,null,null,null,null,null,null,null,null,null,null,null,null,null,null,null,null,null,null,null,null,null,null,null,null,null,null,null,null,null,{"$f":"IF(Z21=\"\",\"\",Z21*AG21)","v":""}]
[null,null,null,null,null,null,null,null,null,null,null,null,null,null,null,null,null,null,null,null,null,null,null,null,null,null,null,null,null,null,null,null,null,null,null,null,null,""]
[null,null,null,null,null,null,null,null,null,null,null,null,null,null,null,null,null,null,null,null,null,null,null,null,null,null,null,null,null,null,null,null,null,null,null,null,null,""]
[null,null,null,null,null,null,null,null,null,null,null,null,null,null,null,null,null,null,null,null,null,null,null,null,null,null,null,null,null,null,null,null,null,null,null,null,null,""]
[null,null,null,null,null,null,null,null,null,null,null,null,null,null,null,null,null,null,null,null,null,null,null,null,null,null,null,null,null,null,null,null,null,null,null,null,null,""]
[null,null,null,null,null,null,null,null,null,null,null,null,null,null,null,null,null,null,null,null,null,null,null,null,null,null,null,null,null,null,null,null,null,null,null,null,null,""]
[null,null,null,null,null,null,null,null,null,null,null,null,null,null,null,null,null,null,null,null,null,null,null,null,null,null,null,null,null,null,null,null,null,null,null,null,null,""]
[null,null,null,null,null,null,null,null,null,null,null,null,null,null,null,null,null,null,null,null,null,null,null,null,null,null,null,null,null,null,null,null,null,null,null,null,null,""]
[null,null,null,null,null,null,null,null,null,null,null,null,null,null,null,null,null,null,null,null,null,null,null,null,null,null,null,null,null,null,null,null,null,null,null,null,null,""]
[null,null,null,null,null,null,null,null,null,null,null,null,null,null,null,null,null,null,null,null,null,null,null,null,null,null,null,null,null,null,null,null,null,null,null,null,null,""]
[null,null,null,null,null,null,null,null,null,null,null,null,null,null,null,null,null,null,null,null,null,null,null,null,null,null,null,null,null,null,null,null,null,null,null,null,null,""]
[null,null,null,"合　　　計",null,null,null,null,null,null,null,null,null,null,null,null,null,null,null,null,null,null,null,null,null,null,null,null,null,null,null,null,null,null,null,null,null,{"$f":"SUM(AL20:AR31)","v":0}]
["【備考】"]
[]
[]
[null,"請求書通り・訂正あり",null,null,null,null,null,null,null,null,null,null,null,null,null,null,null,null,null,null,null,null,"査 定 額（担当記入欄）",null,null,null,null,null,null,null,null,null,null,"￥"]
[null,"協力値引"]
[null,"駐車　・　高速　(税込)",null,null,null,null,null,null,null,null,null,null,null,null,null,null,null,null,null,null,null,null,"事前単価取決の有無",null,null,null,null,null,null,null,null,null,null,"有　　／　　無"]
[null,"支払決定額(税込)",null,null,null,null,null,null,null,null,null,null,null,null,null,{"$f":"+P36*1.08+P38","v":0}]
[null,"※経理使用覧の為記入不要",null,null,null,null,null,null,null,null,null,null,null,null,null,null,null,null,null,null,null,null,null,null,null,null,null,null,"管理番号",null,null,null,null,null,null,null,"ＹＳ－28－０4"]

{"sheet":"内訳","index":2,"n_rows":39,"n_cols":43,"rows_kept":39,"cut":false,"hidden":false,"merged":[[0,37,0,38],[0,40,0,41],[0,42,0,43],[2,29,2,43],[1,22,1,28],[1,29,1,43],[1,0,2,21],[3,0,3,21],[2,22,3,28],[3,29,3,43],[9,37,9,43],[8,0,8,2],[8,3,8,24],[8,25,8,29],[8,30,8,31],[8,32,8,36],[8,37,8,43],[5,0,5,7],[5,8,5,43],[6,0,6,2],[6,3,6,24],[6,25,6,29],[6,30,6,31],[6,32,6,36],[6,37,6,43],[7,37,7,43],[9,0,9,2],[9,3,9,24],[9,25,9,29],[9,30,9,31],[9,32,9,36],[7,0,7,2],[7,3,7,24],[7,25,7,29],[31,0,31,2],[31,3,31,24],[31,25,31,29],[31,30,31,31],[31,32,31,36],[31,37,31,43],[12,0,12,2],[12,3,12,24],[12,25,12,29],[12,30,12,31],[12,32,12,36],[12,37,12,43],[13,32,13,36],[13,37,13,43],[14,0,14,2],[14,3,14,24],[14,25,14,29],[14,30,14,31],[18,0,18,2],[18,3,18,24],[18,25,18,29],[18,30,18,31],[18,32,18,36],[15,30,15,31],[7,30,7,31],[7,32,7,36],[33,30,33,31],[33,32,33,36],[33,37,33,43],[32,0,32,2],[32,3,32,24],[32,25,32,29],[32,30,32,31],[32,32,32,36],[32,37,32,43],[10,0,10,2],[10,3,10,24],[10,25,10,29],[10,30,10,31],[10,32,10,36],[10,37,10,43],[11,0,11,2],[11,3,11,24],[11,25,11,29],[11,30,11,31],[11,32,11,36],[11,37,11,43],[15,25,15,29],[40,0,40,43],[36,0,36,2],[36,3,36,24],[36,25,36,29],[36,30,36,31],[36,32,36,36],[36,37,36,43],[35,0,35,2],[35,3,35,24],[35,25,35,29],[35,30,35,31],[35,32,35,36],[35,37,35,43],[37,0,37,2],[37,3,37,36],[37,37,37,43],[34,0,34,2],[34,3,34,24],[34,25,34,29],[34,30,34,31],[34,32,34,36],[34,37,34,43],[14,32,14,36],[14,37,14,43],[13,0,13,2],[13,3,13,24],[13,25,13,29],[13,30,13,31],[33,0,33,2],[33,3,33,24],[33,25,33,29],[17,37,17,43],[16,0,16,2],[16,3,16,24],[16,25,16,29],[16,30,16,31],[16,32,16,36],[15,37,15,43],[15,0,15,2],[15,3,15,24],[15,32,15,36],[16,37,16,43],[20,0,20,2],[20,3,20,24],[20,25,20,29],[20,30,20,31],[20,32,20,36],[20,37,20,43],[19,0,19,2],[19,3,19,24],[19,25,19,29],[19,30,19,31],[19,32,19,36],[19,37,19,43],[18,37,18,43],[17,0,17,2],[17,3,17,24],[17,25,17,29],[17,30,17,31],[17,32,17,36],[22,0,22,2],[22,3,22,24],[22,25,22,29],[22,30,22,31],[22,32,22,36],[22,37,22,43],[21,0,21,2],[21,3,21,24],[21,25,21,29],[21,30,21,31],[21,32,21,36],[21,37,21,43],[24,0,24,2],[24,3,24,24],[24,25,24,29],[24,30,24,31],[24,32,24,36],[24,37,24,43],[23,0,23,2],[23,3,23,24],[23,25,23,29],[23,30,23,31],[23,32,23,36],[23,37,23,43],[27,0,27,2],[27,3,27,24],[27,25,27,29],[27,30,27,31],[27,32,27,36],[27,37,27,43],[25,32,25,36],[25,37,25,43],[26,0,26,2],[26,3,26,24],[26,25,26,29],[26,30,26,31],[26,32,26,36],[26,37,26,43],[25,0,25,2],[25,3,25,24],[25,25,25,29],[25,30,25,31],[28,0,28,2],[28,3,28,24],[28,25,28,29],[28,30,28,31],[28,32,28,36],[28,37,28,43],[30,0,30,2],[30,3,30,24],[30,25,30,29],[30,30,30,31],[30,32,30,36],[30,37,30,43],[29,0,29,2],[29,3,29,24],[29,25,29,29],[29,30,29,31],[29,32,29,36],[29,37,29,43]]}
[null,null,null,null,null,null,null,null,null,null,null,null,null,null,null,null,null,null,null,null,null,null,null,null,null,null,null,null,null,null,null,null,null,null,null,null,null,null,null,"／",null,null,"㌻"]
["　　請　求　内　訳　書　　",null,null,null,null,null,null,null,null,null,null,null,null,null,null,null,null,null,null,null,null,null,"請負者コード",null,null,null,null,null,null,{"$f":"+請求書1P!AD9","v":0}]
[null,null,null,null,null,null,null,null,null,null,null,null,null,null,null,null,null,null,null,null,null,null,"請負者名",null,null,null,null,null,null,{"$f":"+請求書1P!AD11","v":0}]
["（手間工事専用）",null,null,null,null,null,null,null,null,null,null,null,null,null,null,null,null,null,null,null,null,null,null,null,null,null,null,null,null,{"$f":"+請求書1P!AD13","v":0}]
[]
["現場名",null,null,null,null,null,null,null,{"$f":"+請求書1P!I18","v":0}]
["月日",null,null,"内　　　　容",null,null,null,null,null,null,null,null,null,null,null,null,null,null,null,null,null,null,null,null,null,"数　量",null,null,null,null,"単位",null,"単　価",null,null,null,null,"金　　額"]
[null,null,null,null,null,null,null,null,null,null,null,null,null,null,null,null,null,null,null,null,null,null,null,null,null,null,null,null,null,null,null,null,null,null,null,null,null,{"$f":"IF(Z8=\"\",\"\",Z8*AG8)","v":""}]
[null,null,null,null,null,null,null,null,null,null,null,null,null,null,null,null,null,null,null,null,null,null,null,null,null,null,null,null,null,null,null,null,null,null,null,null,null,{"$f":"IF(Z9=\"\",\"\",Z9*AG9)","v":""}]
[null,null,null,null,null,null,null,null,null,null,null,null,null,null,null,null,null,null,null,null,null,null,null,null,null,null,null,null,null,null,null,null,null,null,null,null,null,""]
[null,null,null,null,null,null,null,null,null,null,null,null,null,null,null,null,null,null,null,null,null,null,null,null,null,null,null,null,null,null,null,null,null,null,null,null,null,""]
[null,null,null,null,null,null,null,null,null,null,null,null,null,null,null,null,null,null,null,null,null,null,null,null,null,null,null,null,null,null,null,null,null,null,null,null,null,""]
[null,null,null,null,null,null,null,null,null,null,null,null,null,null,null,null,null,null,null,null,null,null,null,null,null,null,null,null,null,null,null,null,null,null,null,null,null,""]
[null,null,null,null,null,null,null,null,null,null,null,null,null,null,null,null,null,null,null,null,null,null,null,null,null,null,null,null,null,null,null,null,null,null,null,null,null,{"$f":"IF(Z14=\"\",\"\",Z14*AG14)","v":""}]
[null,null,null,null,null,null,null,null,null,null,null,null,null,null,null,null,null,null,null,null,null,null,null,null,null,null,null,null,null,null,null,null,null,null,null,null,null,""]
[null,null,null,null,null,null,null,null,null,null,null,null,null,null,null,null,null,null,null,null,null,null,null,null,null,null,null,null,null,null,null,null,null,null,null,null,null,""]
[null,null,null,null,null,null,null,null,null,null,null,null,null,null,null,null,null,null,null,null,null,null,null,null,null,null,null,null,null,null,null,null,null,null,null,null,null,{"$f":"IF(Z17=\"\",\"\",Z17*AG17)","v":""}]
[null,null,null,null,null,null,null,null,null,null,null,null,null,null,null,null,null,null,null,null,null,null,null,null,null,null,null,null,null,null,null,null,null,null,null,null,null,""]
[null,null,null,null,null,null,null,null,null,null,null,null,null,null,null,null,null,null,null,null,null,null,null,null,null,null,null,null,null,null,null,null,null,null,null,null,null,""]
[null,null,null,null,null,null,null,null,null,null,null,null,null,null,null,null,null,null,null,null,null,null,null,null,null,null,null,null,null,null,null,null,null,null,null,null,null,""]
[null,null,null,null,null,null,null,null,null,null,null,null,null,null,null,null,null,null,null,null,null,null,null,null,null,null,null,null,null,null,null,null,null,null,null,null,null,""]
[null,null,null,null,null,null,null,null,null,null,null,null,null,null,null,null,null,null,null,null,null,null,null,null,null,null,null,null,null,null,null,null,null,null,null,null,null,""]
[null,null,null,null,null,null,null,null,null,null,null,null,null,null,null,null,null,null,null,null,null,null,null,null,null,null,null,null,null,null,null,null,null,null,null,null,null,""]
[null,null,null,null,null,null,null,null,null,null,null,null,null,null,null,null,null,null,null,null,null,null,null,null,null,null,null,null,null,null,null,null,null,null,null,null,null,""]
[null,null,null,null,null,null,null,null,null,null,null,null,null,null,null,null,null,null,null,null,null,null,null,null,null,null,null,null,null,null,null,null,null,null,null,null,null,""]
[null,null,null,null,null,null,null,null,null,null,null,null,null,null,null,null,null,null,null,null,null,null,null,null,null,null,null,null,null,null,null,null,null,null,null,null,null,""]
[null,null,null,null,null,null,null,null,null,null,null,null,null,null,null,null,null,null,null,null,null,null,null,null,null,null,null,null,null,null,null,null,null,null,null,null,null,""]
[null,null,null,null,null,null,null,null,null,null,null,null,null,null,null,null,null,null,null,null,null,null,null,null,null,null,null,null,null,null,null,null,null,null,null,null,null,""]
[null,null,null,null,null,null,null,null,null,null,null,null,null,null,null,null,null,null,null,null,null,null,null,null,null,null,null,null,null,null,null,null,null,null,null,null,null,""]
[null,null,null,null,null,null,null,null,null,null,null,null,null,null,null,null,null,null,null,null,null,null,null,null,null,null,null,null,null,null,null,null,null,null,null,null,null,""]
[null,null,null,null,null,null,null,null,null,null,null,null,null,null,null,null,null,null,null,null,null,null,null,null,null,null,null,null,null,null,null,null,null,null,null,null,null,""]
[null,null,null,null,null,null,null,null,null,null,null,null,null,null,null,null,null,null,null,null,null,null,null,null,null,null,null,null,null,null,null,null,null,null,null,null,null,""]
[null,null,null,null,null,null,null,null,null,null,null,null,null,null,null,null,null,null,null,null,null,null,null,null,null,null,null,null,null,null,null,null,null,null,null,null,null,""]
[null,null,null,null,null,null,null,null,null,null,null,null,null,null,null,null,null,null,null,null,null,null,null,null,null,null,null,null,null,null,null,null,null,null,null,null,null,""]
[null,null,null,null,null,null,null,null,null,null,null,null,null,null,null,null,null,null,null,null,null,null,null,null,null,null,null,null,null,null,null,null,null,null,null,null,null,""]
[null,null,null,null,null,null,null,null,null,null,null,null,null,null,null,null,null,null,null,null,null,null,null,null,null,null,null,null,null,null,null,null,null,null,null,null,null,""]
[null,null,null,null,null,null,null,null,null,null,null,null,null,null,null,null,null,null,null,null,null,null,null,null,null,null,null,null,null,null,null,null,null,null,null,null,null,""]
[null,null,null,"合　　　計",null,null,null,null,null,null,null,null,null,null,null,null,null,null,null,null,null,null,null,null,null,null,null,null,null,null,null,null,null,null,null,null,null,{"$f":"SUM(AL8:AR37)","v":0}]
["【備考】"]